Cogmind - Beta 13 X2 @@@ ROGUE MODE // 2023.12.22 @ 14:15:04 Player: youngster Result: Destroyed by ZL-ELN(R) with Subdweller Machine Gun Performance ------------- Evolutions (0) 0 Regions Visited (3) 600 Robots Destroyed (33) 165 Value Destroyed (738) 738 Prototype IDs (2) 40 Alien Tech Used (0) 0 Bonus (85) 85 TOTAL SCORE: 1628 Bonus ------- Follower Combat Kills 85 Cogmind --------- Core Integrity 0/250 Matter 122/300 Energy 244/250 System Corruption 1% Temperature Cool (0) Movement Treading (250) Ox1 Location -10/Subcaves Parts ------- > --- POWER (1) -------- Ion Engine > --- PROPULSION (2) --- Light Treads Spiked Treads > --- UTILITY (2) ------ High-capacity Storage Unit Subdweller Optics > --- WEAPON (2) ------- Autogun Subdweller Machine Gun > --- INVENTORY (20) --- Subdweller Power Source Light Treads Spiked Treads Disposable Heat Sink Improved Terrain Scanner Seismic Detector Transport Network Coupler Makeshift Light Armor Plating Light Assault Rifle Autogun Autogun Grenade Launcher Rocket Launcher Rocket Launcher Rocket Launcher Rocket Launcher Subdweller Shrapnel Launcher Piercing Trap Peak State ------------ > --- POWER ------------ Subdweller Power Source > --- PROPULSION ------- Light Treads Subdweller Monowheel > --- UTILITY ---------- High-capacity Storage Unit Weapon Shielding > --- WEAPON ----------- Autogun Battle Cannon > --- INVENTORY -------- Ion Engine Light Treads Spiked Treads Compact Wheel Disposable Heat Sink Subdweller Optics Improved Terrain Scanner Seismic Detector Transport Network Coupler Light Assault Rifle Autogun Autogun Autogun Grenade Launcher Rocket Launcher Rocket Launcher Rocket Launcher Rocket Launcher Piercing Trap [Rating: 14] Favorites ----------- Power Ion Engine Engine Ion Engine Propulsion Light Treads Treads Light Treads Wheel Compact Wheel Utility High-capacity Storage Unit Device Seismic Detector Storage High-capacity Storage Unit Protection Weapon Shielding Weapon EM Pulse Gun Energy Gun EM Pulse Gun Energy Cannon Subdweller Beam Cannon Ballistic Gun Autogun Ballistic Cannon Battle Cannon Launcher Grenade Launcher Build | -11 -10 -10 -10 ------- Run | Yrd Mat Min Sub Slots Evolved . | . . . . Power . | . . . . Propulsion . | . . . . Utility . | . . . . Weapon . | . . . . Parts Attached 69 | 8 31 3 27 Power 5 | 1 1 . 3 Engine 5 | 1 1 . 3 Core . | . . . . Reactor . | . . . . Propulsion 14 | 2 3 . 9 Treads 8 | 2 2 . 4 Leg . | . . . . Wheel 6 | . 1 . 5 Hover . | . . . . Flight . | . . . . Utility 12 | 2 4 1 5 Device 7 | 1 3 1 2 Storage 3 | 1 1 . 1 Processor . | . . . . Hackware . | . . . . Protection 2 | . . . 2 Artifact . | . . . . Weapon 38 | 3 23 2 10 Energy Gun 13 | 2 9 2 . Energy Cannon 2 | . . . 2 Ballistic Gun 9 | 1 3 . 5 Ballistic Cannon 2 | . . . 2 Launcher 12 | . 11 . 1 Special Weapon . | . . . . Impact Weapon . | . . . . Slashing Weapon . | . . . . Piercing Weapon . | . . . . Special Melee Weapon . | . . . . Unidentified Prototypes . | . . . . Parts Lost 7 | . 1 . 6 Power 1 | . . . 1 Propulsion 2 | . . . 2 Utility . | . . . . Weapon 4 | . 1 . 3 Highest Loss Streak 3 | . 1 . 3 To Critical Strikes . | . . . . Average Slot Usage (%) 98 | . 98 100 98 Engine 14 | . 14 14 14 Treads 22 | . 26 28 15 Wheel 4 | . . . 12 Device 12 | . 14 14 9 Storage 14 | . 14 14 14 Protection 1 | . . . 3 Energy Gun 13 | . 17 28 1 Energy Cannon 1 | . . . 4 Ballistic Gun 8 | . 5 . 15 Ballistic Cannon 2 | . . . 6 Launcher 2 | . 4 . . Naked Turns . | . . . . Heaviest Build 59 | 13 53 50 59 Greatest Support 40 | 40 40 40 40 Greatest Overweight (x) 3 | . 3 1 3 Average Overweight (x) 1 | . . 1 2 Largest Inventory Capacity 20 | 8 20 20 20 Average Capacity 18 | 7 17 20 20 Most Carried 20 | 4 20 20 20 Average Carried 15 | 3 12 20 19 Final Capacity 20 | 8 20 20 20 Final Carried 20 | 4 20 20 18 Class Distribution -------------------- 100% | Mutant Dominant Class ---------------- Mutant | -10/Materials Mutant | -10/Mines Mutant | -10/Subcaves Resources | -11 -10 -10 -10 ----------- Run | Yrd Mat Min Sub Matter Collected 1279 | 306 377 178 418 Remotely . | . . . . Salvage Created 1013 | 222 506 60 225 Parts 70 | 15 37 2 16 Haulers Intercepted 1 | . 1 . . Recyclers Shooed 1 | . 1 . . Parts Field Recycled . | . . . . Retrieved Matter . | . . . . Parts Self-Destructed 14 | . . . 14 Prevented . | . . . . Kills | -11 -10 -10 -10 ------- Run | Yrd Mat Min Sub Combat Hostiles Destroyed 21 | . 13 1 7 Guns 8 | . 4 1 3 Cannons 2 | . . . 2 AOE 10 | . 9 . 1 Classes Destroyed 7 | 2 4 . 1 Worker 1 | . 1 . . Tunneler 7 | 6 1 . . Hauler 1 | . 1 . . Recycler 3 | 1 2 . . Swarmer 6 | . 6 . . Grunt 8 | . 7 1 . Subdweller 7 | . . . 7 Best Kill Streak 3 | 3 3 1 2 Combat Bots Only 3 | . 3 1 2 Max Kills in Single Turn 3 | 1 3 1 1 Gunslinging . | . . . . Exploded 3 | . 3 . 1 Melee . | . . . . Uniques/NPCs Destroyed . | . . . . Combat | -11 -10 -10 -10 -------- Run | Yrd Mat Min Sub Hostile Shots Fired 123 | . 60 5 58 Missed 26 | . 13 . 13 Damage Taken 1576 | . 492 74 1010 Core 269 | . 76 17 176 Absorbed by Shields . | . . . . Redirected to Shielding 39 | . . . 39 Regen/Repaired (Parts) 138 | . 138 . . Core Remaining (%) 100 | 100 . . . Volleys Fired 144 | 26 37 5 76 Largest 2 | 2 2 2 2 Hottest 80 | 60 80 80 80 Shots Fired 237 | 52 62 10 113 Gun 168 | 52 43 10 63 Cannon 47 | . . . 47 Launcher 22 | . 19 . 3 Special . | . . . . Kinetic 108 | 26 11 . 71 Thermal 45 | 23 . . 22 Explosive 19 | . 19 . . Electromagnetic 65 | 3 32 10 20 Robot Hit Streak 19 | 9 7 3 19 Robot Miss Streak 4 | 2 4 2 2 Penetration Max . | . . . . Secondary Targets . | . . . . Shots Hit Robots 129 | 35 26 7 61 Core Hits 58 | 11 29 3 15 Critical Kills . | . . . . Critical Parts Destroyed 1 | . . . 1 Critical Strikes 2 | . . . 2 Destroy 2 | . . . 2 Melee Attacks . | . . . . Impact . | . . . . Slashing . | . . . . Piercing . | . . . . Sneak Attacks . | . . . . Combat Hostiles . | . . . . Follow-up Attacks . | . . . . Damage Inflicted 2710 | 295 1181 92 1142 Guns 1365 | 295 296 88 686 Cannons 196 | . . . 196 Explosions 1145 | . 885 . 260 Melee . | . . . . Ramming 4 | . . 4 . Kinetic 1168 | 119 63 . 986 Thermal 187 | 139 48 . . Explosive 837 | . 837 . . Electromagnetic 514 | 37 233 88 156 Impact . | . . . . Slashing . | . . . . Piercing . | . . . . Highest Corruption 1 | . 1 1 1 Average Corruption 1 | . 1 1 1 Corruption Purged . | . . . . Corruption Blocked . | . . . . Effects 19 | . 4 4 11 Message Errors 6 | . 3 . 3 Matter Fused 3 | . . 1 2 Heat Flow Errors 2 | . . . 2 Energy Discharges 1 | . . 1 . Data Loss (minor) 2 | . . 2 . Data Loss (major) 2 | . 1 . 1 Misfires 1 | . . . 1 Alerts 1 | . . . 1 Weapon Failures 1 | . . . 1 Overload Shots . | . . . . Overflow Damage . | . . . . Projectiles . | . . . . Explosions . | . . . . Melee . | . . . . Knockbacks 3 | . . . 3 Impact . | . . . . Kinetic 3 | . . . 3 Secondary . | . . . . Self-Inflicted Damage 134 | . 41 . 93 Shots 5 | . 2 . 3 Rammed 1 | . . 1 . Targets Rammed 1 | . . 1 . Kicked . | . . . . Crushed . | . . . . Highest Temperature 221 | 80 90 135 221 Average Temperature 33 | 30 26 71 32 Received Heat Transfer 330 | . 129 45 156 Siege Activations . | . . . . Robots Corrupted 1 | . . . 1 Combat Hostiles 1 | . . . 1 Parts Fried 5 | . . 2 3 Impact Corruptions . | . . . . Robots Melted . | . . . . Combat Hostiles . | . . . . Parts Melted . | . . . . Heat Transferred 325 | 325 . . . Parts Sabotaged . | . . . . Parts Stolen . | . . . . Parts Stripped . | . . . . Power Chain Reactions 1 | . 1 . . Missiles Intercepted . | . . . . Alert | -11 -10 -10 -10 ------- Run | Yrd Mat Min Sub Peak Influence 363 | 35 363 197 . Initial 91 | . 22 91 . Average 148 | 16 196 88 . Maximum Alert Level 1 | . 1 . . Low Security (%) 60 | 100 35 100 . Level 1 39 | . 64 . . Level 2 . | . . . . Level 3 . | . . . . Level 4 . | . . . . Level 5 . | . . . . High Security . | . . . . Max Security . | . . . . Squads Dispatched 2 | . 2 . . Investigation . | . . . . Extermination . | . . . . Reinforcement 2 | . 2 . . Assault . | . . . . Garrison . | . . . . Intercept . | . . . . Searches Triggered . | . . . . Construction Impeded . | . . . . Haulers Reinforced . | . . . . Active Scanning Responses . | . . . . Cargo Convoy Interrupts . | . . . . Stealth | -11 -10 -10 -10 --------- Run | Yrd Mat Min Sub Distress Signals 2 | . 2 . . Communications Jammed . | . . . . Distress Signals . | . . . . Times Spotted 37 | . 26 1 10 Peak Tracking Total 5 | . 5 2 2 Tactical Retreats 5 | . 4 . 1 Traps | -11 -10 -10 -10 ------- Run | Yrd Mat Min Sub Traps Triggered 1 | . 1 . . Indirectly . | . . . . Trap Hack Attempts . | . . . . Triggered . | . . . . Disarmed . | . . . . Reprogrammed . | . . . . Reused . | . . . . Traps Extracted . | . . . . Installed . | . . . . Triggered . | . . . . Most Traps Carried 1 | . . . 1 Machines | -11 -10 -10 -10 ---------- Run | Yrd Mat Min Sub Machines Disabled 3 | . 3 . . Max in Single Turn 1 | . 1 . . Machines Repaired . | . . . . Machines Dismantled . | . . . . Machines Sabotaged . | . . . . Overloaded Fab Kills . | . . . . Hacking | -11 -10 -10 -10 --------- Run | Yrd Mat Min Sub Machines Accessed 6 | . 6 . . Terminals 5 | . 5 . . Fabricators . | . . . . Repair Stations 1 | . 1 . . Recycling Units . | . . . . Scanalyzers . | . . . . Garrison Access . | . . . . Total Hacks 28 | . 28 . . Successful 15 | . 15 . . Failed 12 | . 12 . . Catastrophic . | . . . . Database Lockouts 1 | . 1 . . Manual 15 | . 15 . . Terminals 23 | . 23 . . Fabricators . | . . . . Repair Stations 5 | . 5 . . Recycling Units . | . . . . Scanalyzers . | . . . . Garrison Access . | . . . . Terminal Hacks 6 | . 6 . . Robot Schematic 1 | . 1 . . Robot Analysis 1 | . 1 . . Prototype ID Bank 1 | . 1 . . Locate Traps 1 | . 1 . . Registered Components 1 | . 1 . . Zone Layout 1 | . 1 . . Fabricator Hacks . | . . . . Repair Station Hacks 4 | . 4 . . Scan Component 2 | . 2 . . Repair 2 | . 2 . . Recycling Unit Hacks . | . . . . Scanalyzer . | . . . . Garrison Access Hacks . | . . . . Unauthorized Hacks 5 | . 5 . . Terminals 5 | . 5 . . Track 1 | . 1 . . Botnet 3 | . 3 . . Operators 1 | . 1 . . Fabricators . | . . . . Repair Stations . | . . . . Recycling Units . | . . . . Scanalyzers . | . . . . Garrison Access . | . . . . Data Cores Recovered . | . . . . Used . | . . . . Hacking Detections 5 | . 5 . . Full Trace Events 1 | . 1 . . Feedback Events 1 | . 1 . . Corruption 1 | . 1 . . Feedback Blocked . | . . . . Robot Schematics Acquired 1 | . 1 . . Robots Built . | . . . . Authchips . | . . . . Time . | . . . . Total Robot Build Rating . | . . . . Part Schematics Acquired . | . . . . Parts Built . | . . . . Authchips . | . . . . Time . | . . . . Total Part Build Rating . | . . . . Parts Repaired 2 | . 2 . . Time 52 | . 52 . . Parts Recycled . | . . . . Recycled Matter . | . . . . Retrieved Matter . | . . . . Retrieved Components . | . . . . Parts Scanalyzed . | . . . . Part Schematics Acquired . | . . . . Parts Damaged . | . . . . Bothacking | -11 -10 -10 -10 ------------ Run | Yrd Mat Min Sub Used RIF Installer . | . . . . Robots Hacked . | . . . . Non-combat . | . . . . Combat . | . . . . Robot Hacks Applied . | . . . . Relay Couplers Released . | . . . . Fabnet Peak Effective % . | . . . . Robots Rewired . | . . . . Allies Hacked . | . . . . Hacks Repelled . | . . . . Allies | -11 -10 -10 -10 -------- Run | Yrd Mat Min Sub Total Allies 1 | . . 1 . Largest Group 1 | . . 1 . Highest-Rated Group 31 | . . 31 . Highest-Rated Ally 31 | . . 31 . Total Orders . | . . . . Ally Attacks 9 | . . 9 . Total Damage 191 | . . 191 . Kills 3 | . . 3 . Allies Corrupted . | . . . . Allies Melted . | . . . . Intel | -11 -10 -10 -10 ------- Run | Yrd Mat Min Sub Robot Analysis Total 1 | . 1 . . Derelict Logs Recovered 3 | . . . 3 Drone Launches . | . . . . Drone Recoveries . | . . . . Exploration | -11 -10 -10 -10 ------------- Run | Yrd Mat Min Sub Turns Passed 3461 | 232 1404 623 1202 Spaces Moved 1544 | 92 534 250 668 Core 3 | 3 . . . Treads 876 | 89 518 250 19 Legs . | . . . . Wheels 665 | . 16 . 649 Hover . | . . . . Flight . | . . . . Fastest Speed 50 | 50 145 240 130 Average Speed 186 | 156 220 240 143 Slowest Speed 320 | 160 320 240 250 Overloaded Moves . | . . . . Propulsion Burnouts . | . . . . Robots Hopped . | . . . . Cave-ins Triggered . | . . . . Exploration Rate (%) 50 | 5 89 58 51 Regions Visited 3 Branch Regions 2 Pre-discovered Areas . | . . . . Known Exits Taken . | . . . . Unknown Exits Taken 3 | 1 1 1 . Scrap Searched 11 | . . . 11 Spaces Dug 66 | . 47 . 19 Terrain Destroyed 137 | . 92 . 45 Melee . | . . . . Projectile 14 | . . . 14 AOE 123 | . 92 . 31 Terrain Rammed . | . . . . Walls Destroyed . | . . . . Machines Disabled . | . . . . Actions | -11 -10 -10 -10 --------- Run | Yrd Mat Min Sub Total 1883 | 129 689 261 804 Wait 75 | . 62 3 10 Move 1541 | 91 533 249 668 Hop . | . . . . Pick Up 32 | 4 20 . 8 Fast Attach 15 | 7 3 . 5 Attach 11 | . 3 . 8 Detach 5 | . 1 . 4 Swap 43 | 1 25 3 14 Drop 16 | . 5 . 11 Fire 144 | 26 37 5 76 Melee . | . . . . Ram . | . . . . Kick . | . . . . Crush 1 | . . 1 . Escape Stasis . | . . . . Rewire . | . . . . Trap . | . . . . Miscellaneous . | . . . . Route ------- -11/Scrapyard -10/Materials (discovered 5 exits: [*Mat x3] / [*Min x2]) -10/Mines (discovered 2 exits: [*Mat] / [*Sub]) -10/Subcaves (discovered 3 exits: [*Mat x2] / [*Rec]) History --------- Turn | Location | Event 54 | -11/Scrapyard | Discovered new exit (range 15) 233 | -11/Scrapyard | Entered Materials 315 | -10/Materials | Build established: Mutant 417 | -10/Materials | Discovered new exit (range 6) 698 | -10/Materials | Discovered new exit (range 16) 792 | -10/Materials | Central database locked down 1104 | -10/Materials | Discovered new exit (range 8) 1131 | -10/Materials | Discovered new exit (range 15) 1274 | -10/Materials | Repaired Lgt. Treads? 1329 | -10/Materials | Repaired Lgt. Treads? 1357 | -10/Materials | Discovered new exit (range 6) 1637 | -10/Materials | Entered Mines 1660 | -10/Mines | Received a Mining Laser from a helpful Derelict 1979 | -10/Mines | Discovered new exit (range 9) 2246 | -10/Mines | Discovered new exit (range 8) 2247 | -10/Mines | Assembled infested the area 2260 | -10/Mines | Entered Subcaves 2357 | -10/Subcaves | Lost 3 parts (1p2w) 2405 | -10/Subcaves | Learned Materials non-interactive machine intel 2432 | -10/Subcaves | Learned 4 Materials zone layouts 2470 | -10/Subcaves | A swath of the cavern ceiling suddenly collapsed 2491 | -10/Subcaves | Core integrity fell below 50% 2602 | -10/Subcaves | Discovered new exit (range 12) 2872 | -10/Subcaves | Discovered new exit (range 16) 2873 | -10/Subcaves | A swath of the cavern ceiling suddenly collapsed 3241 | -10/Subcaves | Discovered new exit (range 14) 3249 | -10/Subcaves | Shifting Twisted Machinery released Mak. Light Armor Plating 3249 | -10/Subcaves | Shifting Twisted Machinery released Sub. Monowheel 3414 | -10/Subcaves | Shifting Twisted Machinery released Piercing Trap 3442 | -10/Subcaves | Core integrity fell below 20% 3443 | -10/Subcaves | Shifting Twisted Machinery released Battle Cannon 3454 | -10/Subcaves | Ambushed by Subdweller buried in earth 3462 | -10/Subcaves | Destroyed by ZL-ELN(R) with Subdweller Machine Gun Last Messages --------------- 03084_ Acquired 17 matter. 03086_ Dropped Battle Cannon. 03087_ Acquired Sub. Beam Cannon. 03091_ Dropped Autogun. 03120_ System corrupted: Sub. Beam Cannon failed to cycle. 03241_ C5P&OZ ETAZ7QEY39VE%MAW/ 03241_ EXIT=FOUND Mak. Light Armor Plating falls loose from the Twisted Machinery. Sub. Monowheel falls loose from the Twisted Machinery. 03260_ Dropped Weapon Shielding. 03260_ Acquired Mak. Light Armor Plating. 03362_ System corrupted: IFF burst signal emitted. Piercing Trap falls loose from the Twisted Machinery. Battle Cannon falls loose from the Twisted Machinery. 03444_ Sub. Beam Cannon destroyed. 03445_ EU-UFC(R) destroyed. 03449_ ZL-ELN(R) suffers critical hit (Destroy). 03449_ Destroyed Sub. Power Source. 03455_ 7W-JMB(R): "HIDIE!" 03456_ Com. Wheel destroyed. Map ----- +----------------------------------------------------+ | ?????????????????????????????????????????????????? | | ?????????????????????????????????????????????????? | | ?????????????????????????????????????????????????? | | ?????????????????????????????????????????????????? | | ?????????????????????????????????????????????????? | | ?????????????????????????????????????????????????? | | ?????????????????????????????????????????????????? | | ?????????????????????????????????????????????????? | | ?????????????????????????????????????????????????? | | ?????????????????????????????????????????????????? | | ?????????????????????????????????????????????????? | | ?????????????????????????? ?? ???????????????????? | | ??????????????????#??????? ???????????????????? | | ?????????????????## ?????? ??????????????????## | | ????????????????## ?????? ?????????????????### | | ???????????????## ????# ????????????????## | | ???????????????# ##### ???????????????## | | ??????????????## ???????????????## | | ??????????????? """"" ???????????????# | | ????????????????""" " """ ???????????????# | | ??????????????????" " """#???????????????### | | ??????????????????? """###???????????????## | | ?????????????????#### ; #???????????????## | | ?????????????????# R;###??????????????# | | ?????????????????# #??????????????# | | ?????????????????# @ #??????????????# | | ?????????????????#; [ #??????????????## | | ?????????????????## !% ##??????????????## | | ???????????????? R ""#???????????????### | | ?????????????# ; #?????????????????? | | ?????????????# ; ; #?????????????????? | | ????????????## ];### #; #?????????????????? | | ???????????## #???# #?????????????????? | | ???????????# #### #?????????????????? | | ???????????## ##?????????????????? | | ????????????## #??????????????????? | | ?????????????# # ## ###??????????????????? | | ?????????????# ??#??# ##????????????????????? | | ????????????????????# #?????????????????????# | | ??????????????????### ###?????????????????????# | | ?????????????###?## #####???????????????????????# | | ?????????????# ### #???????????????????????????# | | ?????????????# ##?###???????????????????????# | | ????????????## # ### #####???????????????????# | | ????????????# # ##??????????????????? | | ????????????# ###### ###### #??????????????????? | | ????????????# #??# # # # #??????????????????? | | ????????????## ##?# ?### # #??????????????????? | | ????????????? #??###?# # ###??????????????????? | | ????????????## ##???### ### #???????????????????? | +----------------------------------------------------+ Best States ------------- Heat Dissipation 25 Coolant Potential 50 Energy Generation 15 Energy Capacity 250 Matter Stores 300 Matter Capacity 300 Sight Range 21 Terrain Scan Range 16 Terrain Scan Density 10 Weapon Shielding 33 Evasion (%) 40 Recoil Reduction 2 Item Schematics ----------------- None Robot Schematics ------------------ M-13 Machinist | -10/Materials | Hacked Fabricated ------------ Nothing Alien Tech Used ----------------- None Achievements -------------- None Challenges ------------ None Game ------ Seed SchematicBottomlessBattery Manual? 0 Play Time 00:24:41 Cumulative 425.9 hours Start 2023.12.22 @ 13:52:43 End 2023.12.22 @ 14:15:04 Sessions 1 Manual Loads 0 Difficulty Rogue Special Mode None Game No. 191 Rogue 191 Adventurer 0 Explorer 0 Win Type - Total 10 Types 7/0/1/1/0/0/0/1/0 Lore% 85 Gallery% 91 Achievement% 71 Wizard Run 0 Options --------- ASCII 1 Keyboard 1 Movement Vi Keybinds 0 Fullscreen 2 Font 24/Cog Map View 76x50 Zoom Use 0% Tactical HUD 1 Map Filters NONE Filters NONE Steam 0 RUN: f00a20ea-0746-4631-bb54-de57417d8454